[Event "Titled Tuesday Blitz November 29 Late 2022"]
[White "Boruchovsky, Avital"]
[Black "Annaberdiyev, Babageldi"]
[WhiteFideId "2800055"]
[BlackFideId "14000385"]
[WhiteElo "2458"]
[BlackElo "2332"]
[Result "0-1"]
[Round "05"]
[TimeControl "180+1"]
[Date "2022.11.30"]
[WhiteClock "0:00:03"]
[BlackClock "0:00:38"]

1. g3 {[%clk 0:02:57]}  e6 {[%clk 0:03:00]} 2. Bg2 {[%clk 0:02:56]}  d5 {[%clk 0:02:58]} 3. Nf3 {[%clk 0:02:54]}  Nf6 {[%clk 0:02:53]} 4. O-O {[%clk 0:02:55]}  Be7 {[%clk 0:02:51]} 5. d3 {[%clk 0:02:56]}  O-O {[%clk 0:02:52]} 6. Nbd2 {[%clk 0:02:55]}  c5 {[%clk 0:02:52]} 7. e4 {[%clk 0:02:55]}  Nc6 {[%clk 0:02:52]} 8. h3 {[%clk 0:02:54]}  b5 {[%clk 0:02:23]} 9. Re1 {[%clk 0:02:53]}  Bb7 {[%clk 0:02:20]} 10. e5 {[%clk 0:02:45]}  Nd7 {[%clk 0:02:20]} 11. Nf1 {[%clk 0:02:45]}  Qc7 {[%clk 0:02:10]} 12. Bf4 {[%clk 0:02:44]}  a5 {[%clk 0:02:08]} 13. g4 {[%clk 0:02:41]}  a4 {[%clk 0:02:06]} 14. Qd2 {[%clk 0:02:39]}  a3 {[%clk 0:02:05]} 15. b3 {[%clk 0:02:37]}  d4 {[%clk 0:02:05]} 16. Ng3 {[%clk 0:02:33]}  Nb4 {[%clk 0:02:03]} 17. Nh5 {[%clk 0:02:23]}  Rac8 {[%clk 0:01:47]} 18. Bh6 {[%clk 0:02:16]}  g6 {[%clk 0:01:40]} 19. Bxf8 {[%clk 0:02:06]}  Rxf8 {[%clk 0:01:41]} 20. Ng3 {[%clk 0:01:48]}  Bxf3 {[%clk 0:01:36]} 21. Bxf3 {[%clk 0:01:48]}  Nxe5 {[%clk 0:01:37]} 22. Bg2 {[%clk 0:01:47]}  Nd7 {[%clk 0:01:36]} 23. Re2 {[%clk 0:01:45]}  Bd6 {[%clk 0:01:33]} 24. Qh6 {[%clk 0:01:18]}  Bf4 {[%clk 0:01:27]} 25. g5 {[%clk 0:01:17]}  Bxg3 {[%clk 0:01:17]} 26. fxg3 {[%clk 0:01:18]}  Qxg3 {[%clk 0:01:18]} 27. Re4 {[%clk 0:01:13]}  Rd8 {[%clk 0:01:11]} 28. Rf1 {[%clk 0:01:12]}  Nf8 {[%clk 0:01:08]} 29. Ref4 {[%clk 0:01:01]}  Rd7 {[%clk 0:01:05]} 30. R4f3 {[%clk 0:00:46]}  Qe5 {[%clk 0:01:03]} 31. h4 {[%clk 0:00:41]}  Qg7 {[%clk 0:01:03]} 32. Qxg7+ {[%clk 0:00:34]}  Kxg7 {[%clk 0:01:04]} 33. R3f2 {[%clk 0:00:34]}  Rc7 {[%clk 0:01:00]} 34. Rc1 {[%clk 0:00:30]}  Nd7 {[%clk 0:00:50]} 35. Bf1 {[%clk 0:00:23]}  Ne5 {[%clk 0:00:49]} 36. Kg2 {[%clk 0:00:20]}  Ng4 {[%clk 0:00:47]} 37. Rd2 {[%clk 0:00:18]}  Ne3+ {[%clk 0:00:48]} 38. Kf2 {[%clk 0:00:18]}  e5 {[%clk 0:00:49]} 39. Bg2 {[%clk 0:00:16]}  Nxa2 {[%clk 0:00:48]} 40. Ra1 {[%clk 0:00:15]}  Nb4 {[%clk 0:00:49]} 41. Rxa3 {[%clk 0:00:15]}  Nexc2 {[%clk 0:00:49]} 42. Ra8 {[%clk 0:00:14]}  Ne3 {[%clk 0:00:49]} 43. Be4 {[%clk 0:00:14]}  f5 {[%clk 0:00:48]} 44. gxf6+ {[%clk 0:00:13]}  Kxf6 {[%clk 0:00:49]} 45. Kg3 {[%clk 0:00:13]}  Nf5+ {[%clk 0:00:48]} 46. Bxf5 {[%clk 0:00:13]}  gxf5 {[%clk 0:00:49]} 47. h5 {[%clk 0:00:12]}  e4 {[%clk 0:00:48]} 48. dxe4 {[%clk 0:00:12]}  fxe4 {[%clk 0:00:49]} 49. Rf2+ {[%clk 0:00:12]}  Ke6 {[%clk 0:00:50]} 50. Re8+ {[%clk 0:00:11]}  Re7 {[%clk 0:00:50]} 51. Rxe7+ {[%clk 0:00:04]}  Kxe7 {[%clk 0:00:51]} 52. Rf5 {[%clk 0:00:04]}  Nd3 {[%clk 0:00:48]} 53. h6 {[%clk 0:00:02]}  Ke6 {[%clk 0:00:46]} 54. Rg5 {[%clk 0:00:03]}  e3 {[%clk 0:00:44]} 55. Kf3 {[%clk 0:00:03]}  Ne5+ {[%clk 0:00:44]} 56. Ke2 {[%clk 0:00:03]}  c4 {[%clk 0:00:45]} 57. bxc4 {[%clk 0:00:04]}  bxc4 {[%clk 0:00:46]} 58. Rg7 {[%clk 0:00:04]}  c3 {[%clk 0:00:45]} 59. Rxh7 {[%clk 0:00:04]}  c2 {[%clk 0:00:45]} 60. Rc7 {[%clk 0:00:04]}  Kd6 {[%clk 0:00:38]} 61. Rc3 {[%clk 0:00:03]}  dxc3 {[%clk 0:00:37]} 62. h7 {[%clk 0:00:03]}  c1=Q {[%clk 0:00:37]} 63. h8=Q {[%clk 0:00:03]}  Qd2+ {[%clk 0:00:38]} 0-1


[Site "https://www.chess.com"]

[Event "Titled Tuesday Blitz November 29 Late 2022"]
[White "Burke, Paul"]
[Black "Leebit02"]
[WhiteFideId "2605767"]
[WhiteElo "1922"]
[BlackElo "2301"]
[Result "0-1"]
[Round "05"]
[TimeControl "180+1"]
[Date "2022.11.30"]
[WhiteClock "0:00:01"]
[BlackClock "0:00:09"]

1. e4 {[%clk 0:03:00]}  c5 {[%clk 0:02:57]} 2. Nf3 {[%clk 0:02:59]}  Nc6 {[%clk 0:02:56]} 3. d4 {[%clk 0:02:59]}  cxd4 {[%clk 0:02:56]} 4. c3 {[%clk 0:02:59]}  Nf6 {[%clk 0:02:56]} 5. e5 {[%clk 0:02:51]}  Nd5 {[%clk 0:02:56]} 6. cxd4 {[%clk 0:02:51]}  d6 {[%clk 0:02:56]} 7. Be2 {[%clk 0:02:31]}  e6 {[%clk 0:02:45]} 8. O-O {[%clk 0:02:28]}  Be7 {[%clk 0:02:32]} 9. a3 {[%clk 0:02:16]}  O-O {[%clk 0:02:31]} 10. Bd3 {[%clk 0:02:12]}  f6 {[%clk 0:01:49]} 11. exd6 {[%clk 0:01:42]}  Bxd6 {[%clk 0:01:45]} 12. Nc3 {[%clk 0:01:37]}  Nf4 {[%clk 0:01:37]} 13. Bc2 {[%clk 0:01:18]}  a6 {[%clk 0:01:09]} 14. Bxf4 {[%clk 0:00:51]}  Bxf4 {[%clk 0:01:09]} 15. d5 {[%clk 0:00:50]}  exd5 {[%clk 0:00:55]} 16. Qxd5+ {[%clk 0:00:48]}  Qxd5 {[%clk 0:00:51]} 17. Nxd5 {[%clk 0:00:47]}  Bd6 {[%clk 0:00:45]} 18. Nb6 {[%clk 0:00:45]}  Rb8 {[%clk 0:00:44]} 19. Bb3+ {[%clk 0:00:44]}  Kh8 {[%clk 0:00:44]} 20. Nxc8 {[%clk 0:00:42]}  Rbxc8 {[%clk 0:00:42]} 21. Rad1 {[%clk 0:00:39]}  Rfd8 {[%clk 0:00:39]} 22. Be6 {[%clk 0:00:35]}  Rb8 {[%clk 0:00:38]} 23. g3 {[%clk 0:00:31]}  g6 {[%clk 0:00:38]} 24. Bd5 {[%clk 0:00:29]}  Ne7 {[%clk 0:00:37]} 25. Ba2 {[%clk 0:00:27]}  Kg7 {[%clk 0:00:37]} 26. Rfe1 {[%clk 0:00:27]}  Kf8 {[%clk 0:00:36]} 27. Nd4 {[%clk 0:00:26]}  Rd7 {[%clk 0:00:24]} 28. Ne6+ {[%clk 0:00:24]}  Ke8 {[%clk 0:00:24]} 29. Nd4 {[%clk 0:00:21]}  Be5 {[%clk 0:00:22]} 30. Nf3 {[%clk 0:00:20]}  Rxd1 {[%clk 0:00:21]} 31. Rxd1 {[%clk 0:00:20]}  Nc6 {[%clk 0:00:20]} 32. Re1 {[%clk 0:00:20]}  Kd7 {[%clk 0:00:19]} 33. Bd5 {[%clk 0:00:17]}  Kd6 {[%clk 0:00:19]} 34. Bxc6 {[%clk 0:00:16]}  bxc6 {[%clk 0:00:20]} 35. Nd2 {[%clk 0:00:12]}  Kd5 {[%clk 0:00:18]} 36. b4 {[%clk 0:00:09]}  Bc3 {[%clk 0:00:18]} 37. Rd1 {[%clk 0:00:08]}  Bxd2 {[%clk 0:00:13]} 38. Rxd2+ {[%clk 0:00:08]}  Kc4 {[%clk 0:00:14]} 39. Rd7 {[%clk 0:00:07]}  Kb3 {[%clk 0:00:13]} 40. Rxh7 {[%clk 0:00:07]}  Kxa3 {[%clk 0:00:13]} 41. Rg7 {[%clk 0:00:07]}  Kxb4 {[%clk 0:00:13]} 42. Rxg6 {[%clk 0:00:07]}  a5 {[%clk 0:00:10]} 43. Rxf6 {[%clk 0:00:07]}  c5 {[%clk 0:00:10]} 44. Re6 {[%clk 0:00:03]}  a4 {[%clk 0:00:11]} 45. h4 {[%clk 0:00:02]}  a3 {[%clk 0:00:11]} 46. h5 {[%clk 0:00:02]}  a2 {[%clk 0:00:10]} 47. Re1 {[%clk 0:00:01]}  Ka3 {[%clk 0:00:09]} 0-1


[Site "https://www.chess.com"]

[Event "Titled Tuesday Blitz November 29 Late 2022"]
[White "Clawitter, Craig"]
[Black "Tarnowska, Aleksandra"]
[WhiteFideId "2023105"]
[BlackFideId "1180967"]
[WhiteElo "2262"]
[BlackElo "1776"]
[Result "1/2-1/2"]
[Round "05"]
[TimeControl "180+1"]
[Date "2022.11.30"]
[WhiteClock "0:00:06"]
[BlackClock "0:00:05"]

1. e4 {[%clk 0:01:37]}  c5 {[%clk 0:02:58]} 2. Nf3 {[%clk 0:01:38]}  e6 {[%clk 0:02:58]} 3. d4 {[%clk 0:01:37]}  cxd4 {[%clk 0:02:59]} 4. Nxd4 {[%clk 0:01:38]}  a6 {[%clk 0:03:00]} 5. Bd3 {[%clk 0:01:38]}  Bc5 {[%clk 0:02:58]} 6. Nb3 {[%clk 0:01:37]}  Be7 {[%clk 0:02:58]} 7. Nc3 {[%clk 0:01:34]}  Qc7 {[%clk 0:02:53]} 8. O-O {[%clk 0:01:28]}  d6 {[%clk 0:02:53]} 9. f4 {[%clk 0:01:21]}  Nd7 {[%clk 0:02:53]} 10. Kh1 {[%clk 0:01:20]}  Ngf6 {[%clk 0:02:47]} 11. Qe2 {[%clk 0:01:19]}  b5 {[%clk 0:02:32]} 12. Bd2 {[%clk 0:01:16]}  Bb7 {[%clk 0:02:31]} 13. Rae1 {[%clk 0:01:15]}  O-O {[%clk 0:02:18]} 14. e5 {[%clk 0:01:13]}  dxe5 {[%clk 0:01:39]} 15. fxe5 {[%clk 0:01:12]}  Nd5 {[%clk 0:01:09]} 16. Qh5 {[%clk 0:00:41]}  g6 {[%clk 0:01:01]} 17. Qh6 {[%clk 0:00:41]}  Nxe5 {[%clk 0:00:43]} 18. Nxd5 {[%clk 0:00:34]}  Bxd5 {[%clk 0:00:43]} 19. Bf4 {[%clk 0:00:28]}  Bd6 {[%clk 0:00:29]} 20. Bg5 {[%clk 0:00:08]}  Rfe8 {[%clk 0:00:28]} 21. Bf6 {[%clk 0:00:07]}  Bf8 {[%clk 0:00:28]} 22. Qh4 {[%clk 0:00:05]}  Nxd3 {[%clk 0:00:26]} 23. cxd3 {[%clk 0:00:04]}  Bg7 {[%clk 0:00:23]} 24. Bxg7 {[%clk 0:00:02]}  Kxg7 {[%clk 0:00:24]} 25. Qf6+ {[%clk 0:00:03]}  Kg8 {[%clk 0:00:25]} 26. Re3 {[%clk 0:00:03]}  Qe7 {[%clk 0:00:24]} 27. Qf2 {[%clk 0:00:03]}  Qg5 {[%clk 0:00:23]} 28. Rg3 {[%clk 0:00:03]}  Qf5 {[%clk 0:00:20]} 29. Qe2 {[%clk 0:00:03]}  Bf3 {[%clk 0:00:05]} 30. Rfxf3 {[%clk 0:00:03]}  Qd5 {[%clk 0:00:04]} 31. Rf4 {[%clk 0:00:02]}  Rac8 {[%clk 0:00:03]} 32. Rgf3 {[%clk 0:00:02]}  Re7 {[%clk 0:00:02]} 33. h4 {[%clk 0:00:03]}  Qh5 {[%clk 0:00:01]} 34. Kh2 {[%clk 0:00:03]}  e5 {[%clk 0:00:01]} 35. Re4 {[%clk 0:00:03]}  f5 {[%clk 0:00:01]} 36. Rxe5 {[%clk 0:00:02]}  Qxh4+ {[%clk 0:00:02]} 37. Rh3 {[%clk 0:00:02]}  Rxe5 {[%clk 0:00:02]} 38. Qxe5 {[%clk 0:00:02]}  Qg4 {[%clk 0:00:02]} 39. Qe6+ {[%clk 0:00:03]}  Kg7 {[%clk 0:00:02]} 40. Qd7+ {[%clk 0:00:03]}  Kf6 {[%clk 0:00:02]} 41. Qxc8 {[%clk 0:00:04]}  Qf4+ {[%clk 0:00:03]} 42. Rg3 {[%clk 0:00:04]}  Qh4+ {[%clk 0:00:03]} 43. Kg1 {[%clk 0:00:03]}  Qxg3 {[%clk 0:00:04]} 44. Qd7 {[%clk 0:00:04]}  Qe1+ {[%clk 0:00:03]} 45. Kh2 {[%clk 0:00:04]}  Qh4+ {[%clk 0:00:04]} 46. Kg1 {[%clk 0:00:05]}  Qe1+ {[%clk 0:00:04]} 47. Kh2 {[%clk 0:00:05]}  Qh4+ {[%clk 0:00:05]} 48. Kg1 {[%clk 0:00:06]}  Qe1+ {[%clk 0:00:05]} 1/2-1/2


[Site "https://www.chess.com"]

[Event "Titled Tuesday Blitz November 29 Late 2022"]
[White "Corrales Jimenez, Fidel"]
[Black "Chigaev, Maksim"]
[WhiteFideId "3506690"]
[BlackFideId "4108116"]
[WhiteElo "2541"]
[BlackElo "2541"]
[Result "1-0"]
[Round "05"]
[TimeControl "180+1"]
[Date "2022.11.30"]
[WhiteClock "0:00:24"]
[BlackClock "0:00:02"]

1. e4 {[%clk 0:03:00]}  c5 {[%clk 0:03:00]} 2. Nf3 {[%clk 0:02:59]}  e6 {[%clk 0:03:00]} 3. d4 {[%clk 0:03:00]}  cxd4 {[%clk 0:03:01]} 4. Nxd4 {[%clk 0:03:00]}  Nf6 {[%clk 0:03:02]} 5. Nc3 {[%clk 0:03:00]}  Nc6 {[%clk 0:03:02]} 6. Ndb5 {[%clk 0:03:00]}  d6 {[%clk 0:02:56]} 7. Bf4 {[%clk 0:02:59]}  e5 {[%clk 0:02:56]} 8. Bg5 {[%clk 0:03:00]}  a6 {[%clk 0:02:57]} 9. Na3 {[%clk 0:02:59]}  b5 {[%clk 0:02:57]} 10. Bxf6 {[%clk 0:02:59]}  gxf6 {[%clk 0:02:57]} 11. Nd5 {[%clk 0:03:00]}  f5 {[%clk 0:02:58]} 12. Bd3 {[%clk 0:03:00]}  Be6 {[%clk 0:02:57]} 13. O-O {[%clk 0:03:00]}  Bxd5 {[%clk 0:02:56]} 14. exd5 {[%clk 0:03:01]}  Ne7 {[%clk 0:02:57]} 15. Re1 {[%clk 0:03:02]}  Bg7 {[%clk 0:02:55]} 16. c3 {[%clk 0:03:02]}  Qd7 {[%clk 0:02:54]} 17. Nc2 {[%clk 0:02:59]}  h5 {[%clk 0:02:32]} 18. a4 {[%clk 0:02:56]}  bxa4 {[%clk 0:02:28]} 19. Nb4 {[%clk 0:02:55]}  a5 {[%clk 0:02:19]} 20. Nc6 {[%clk 0:02:54]}  e4 {[%clk 0:02:02]} 21. Bxe4 {[%clk 0:02:44]}  fxe4 {[%clk 0:01:56]} 22. Rxe4 {[%clk 0:02:45]}  Be5 {[%clk 0:01:47]} 23. Nxe7 {[%clk 0:02:27]}  Kxe7 {[%clk 0:01:40]} 24. f4 {[%clk 0:02:27]}  f6 {[%clk 0:01:38]} 25. Raxa4 {[%clk 0:02:20]}  Rab8 {[%clk 0:01:24]} 26. fxe5 {[%clk 0:02:06]}  dxe5 {[%clk 0:01:25]} 27. Rxa5 {[%clk 0:02:02]}  Rxb2 {[%clk 0:01:08]} 28. Rb4 {[%clk 0:02:01]}  Rxb4 {[%clk 0:00:49]} 29. cxb4 {[%clk 0:02:02]}  Qg4 {[%clk 0:00:23]} 30. Ra7+ {[%clk 0:02:01]}  Kd6 {[%clk 0:00:21]} 31. Qa4 {[%clk 0:01:54]}  Qd4+ {[%clk 0:00:18]} 32. Kh1 {[%clk 0:01:53]}  e4 {[%clk 0:00:10]} 33. Qd7+ {[%clk 0:01:05]}  Ke5 {[%clk 0:00:10]} 34. Qe6+ {[%clk 0:01:06]}  Kf4 {[%clk 0:00:11]} 35. g3+ {[%clk 0:01:06]}  Ke3 {[%clk 0:00:08]} 36. Ra3+ {[%clk 0:01:03]}  Kd2 {[%clk 0:00:08]} 37. Qc6 {[%clk 0:00:50]}  Qb2 {[%clk 0:00:04]} 38. Qa4 {[%clk 0:00:45]}  Qb1+ {[%clk 0:00:02]} 39. Kg2 {[%clk 0:00:45]}  e3 {[%clk 0:00:02]} 40. b5 {[%clk 0:00:35]}  Rc8 {[%clk 0:00:01]} 41. Qd4+ {[%clk 0:00:32]}  Kc2 {[%clk 0:00:01]} 42. Qe4+ {[%clk 0:00:25]}  Kc1 {[%clk 0:00:01]} 43. Qxe3+ {[%clk 0:00:24]}  Kb2 {[%clk 0:00:02]} 44. Rb3+ {[%clk 0:00:24]} 1-0


[Site "https://www.chess.com"]

[Event "Titled Tuesday Blitz November 29 Late 2022"]
[White "Darini, Pouria"]
[Black "Urazayev, Arystanbek"]
[WhiteFideId "12502200"]
[BlackFideId "13709810"]
[WhiteElo "2483"]
[BlackElo "2441"]
[Result "1-0"]
[Round "05"]
[TimeControl "180+1"]
[Date "2022.11.30"]
[WhiteClock "0:00:06"]
[BlackClock "0:00:03"]

1. e4 {[%clk 0:03:00]}  e5 {[%clk 0:02:55]} 2. Nf3 {[%clk 0:03:00]}  Nc6 {[%clk 0:02:55]} 3. Bb5 {[%clk 0:03:01]}  a6 {[%clk 0:02:55]} 4. Ba4 {[%clk 0:03:01]}  Nf6 {[%clk 0:02:56]} 5. d3 {[%clk 0:03:02]}  Bc5 {[%clk 0:02:55]} 6. O-O {[%clk 0:03:02]}  d6 {[%clk 0:02:55]} 7. c3 {[%clk 0:03:02]}  O-O {[%clk 0:02:54]} 8. Bg5 {[%clk 0:02:59]}  h6 {[%clk 0:02:54]} 9. Bh4 {[%clk 0:02:59]}  g5 {[%clk 0:02:55]} 10. Bg3 {[%clk 0:03:00]}  Nh7 {[%clk 0:02:55]} 11. d4 {[%clk 0:02:59]}  exd4 {[%clk 0:02:45]} 12. cxd4 {[%clk 0:03:00]}  Ba7 {[%clk 0:02:45]} 13. d5 {[%clk 0:02:49]}  Ne7 {[%clk 0:02:31]} 14. Nd4 {[%clk 0:02:46]}  f5 {[%clk 0:02:25]} 15. exf5 {[%clk 0:02:36]}  Nxf5 {[%clk 0:02:25]} 16. Nxf5 {[%clk 0:02:24]}  Bxf5 {[%clk 0:02:24]} 17. Nc3 {[%clk 0:02:25]}  Qf6 {[%clk 0:02:12]} 18. Bc2 {[%clk 0:02:24]}  Bxc2 {[%clk 0:01:55]} 19. Qxc2 {[%clk 0:02:23]}  h5 {[%clk 0:01:55]} 20. h3 {[%clk 0:02:13]}  h4 {[%clk 0:01:49]} 21. Bh2 {[%clk 0:02:13]}  Rae8 {[%clk 0:01:49]} 22. Kh1 {[%clk 0:02:08]}  Qf5 {[%clk 0:01:45]} 23. Qb3 {[%clk 0:01:53]}  g4 {[%clk 0:01:40]} 24. hxg4 {[%clk 0:01:40]}  Qxg4 {[%clk 0:01:38]} 25. f3 {[%clk 0:01:41]}  Qc8 {[%clk 0:01:18]} 26. Ne4 {[%clk 0:01:33]}  Nf6 {[%clk 0:01:12]} 27. Nxf6+ {[%clk 0:01:32]}  Rxf6 {[%clk 0:01:12]} 28. Rae1 {[%clk 0:01:33]}  Rxe1 {[%clk 0:00:59]} 29. Rxe1 {[%clk 0:01:34]}  h3 {[%clk 0:00:59]} 30. g4 {[%clk 0:01:14]}  Qf8 {[%clk 0:00:48]} 31. f4 {[%clk 0:01:13]}  Qf7 {[%clk 0:00:22]} 32. Qxb7 {[%clk 0:00:48]}  Bb6 {[%clk 0:00:18]} 33. Qc8+ {[%clk 0:00:42]}  Kg7 {[%clk 0:00:14]} 34. Re6 {[%clk 0:00:42]}  Qg6 {[%clk 0:00:12]} 35. Qd7+ {[%clk 0:00:38]}  Kg8 {[%clk 0:00:09]} 36. Qd8+ {[%clk 0:00:22]}  Kg7 {[%clk 0:00:07]} 37. f5 {[%clk 0:00:17]}  Rxe6 {[%clk 0:00:05]} 38. Qd7+ {[%clk 0:00:06]}  Kg8 {[%clk 0:00:03]} 39. Qxe6+ {[%clk 0:00:06]}  Qxe6 {[%clk 0:00:03]} 40. dxe6 {[%clk 0:00:07]}  Bd4 {[%clk 0:00:03]} 41. g5 {[%clk 0:00:06]}  Bxb2 {[%clk 0:00:02]} 42. f6 {[%clk 0:00:06]}  d5 {[%clk 0:00:02]} 43. e7 {[%clk 0:00:05]}  Kf7 {[%clk 0:00:02]} 44. g6+ {[%clk 0:00:06]}  Ke8 {[%clk 0:00:03]} 45. g7 {[%clk 0:00:06]} 1-0


[Site "https://www.chess.com"]

[Event "Titled Tuesday Blitz November 29 Late 2022"]
[White "Espinosa, Pedro"]
[Black "Buchenau, Frank"]
[WhiteFideId "30921066"]
[BlackFideId "4604350"]
[WhiteElo "2016"]
[BlackElo "2157"]
[Result "1-0"]
[Round "05"]
[TimeControl "180+1"]
[Date "2022.11.30"]
[WhiteClock "0:00:13"]
[BlackClock "0:00:05"]

1. d4 {[%clk 0:03:00]}  e6 {[%clk 0:02:59]} 2. c4 {[%clk 0:03:00]}  Nf6 {[%clk 0:02:59]} 3. Nf3 {[%clk 0:02:59]}  b6 {[%clk 0:02:59]} 4. g3 {[%clk 0:02:59]}  Bb7 {[%clk 0:03:00]} 5. Bg2 {[%clk 0:02:59]}  Be7 {[%clk 0:03:01]} 6. O-O {[%clk 0:02:58]}  O-O {[%clk 0:03:01]} 7. Nc3 {[%clk 0:02:58]}  Ne4 {[%clk 0:03:01]} 8. Qc2 {[%clk 0:02:50]}  Nxc3 {[%clk 0:03:00]} 9. Qxc3 {[%clk 0:02:49]}  f5 {[%clk 0:03:00]} 10. Rd1 {[%clk 0:02:49]}  Bf6 {[%clk 0:03:00]} 11. Bf4 {[%clk 0:02:42]}  d6 {[%clk 0:02:59]} 12. Qd2 {[%clk 0:02:41]}  Qe7 {[%clk 0:02:53]} 13. d5 {[%clk 0:02:35]}  e5 {[%clk 0:02:50]} 14. Bg5 {[%clk 0:02:34]}  Nd7 {[%clk 0:02:40]} 15. Bxf6 {[%clk 0:02:34]}  Qxf6 {[%clk 0:02:26]} 16. b4 {[%clk 0:02:16]}  a5 {[%clk 0:02:23]} 17. a3 {[%clk 0:02:11]}  f4 {[%clk 0:02:07]} 18. Qc3 {[%clk 0:02:02]}  e4 {[%clk 0:01:29]} 19. Qxf6 {[%clk 0:01:58]}  Nxf6 {[%clk 0:01:20]} 20. Nd4 {[%clk 0:01:56]}  f3 {[%clk 0:00:53]} 21. exf3 {[%clk 0:01:53]}  exf3 {[%clk 0:00:52]} 22. Bxf3 {[%clk 0:01:48]}  Nd7 {[%clk 0:00:28]} 23. Be2 {[%clk 0:01:37]}  Rfe8 {[%clk 0:00:20]} 24. Ne6 {[%clk 0:01:35]}  Nf8 {[%clk 0:00:19]} 25. Bg4 {[%clk 0:01:30]}  Bc8 {[%clk 0:00:20]} 26. bxa5 {[%clk 0:00:36]}  Rxa5 {[%clk 0:00:18]} 27. Re1 {[%clk 0:00:29]}  Bxe6 {[%clk 0:00:16]} 28. dxe6 {[%clk 0:00:28]}  Ng6 {[%clk 0:00:14]} 29. f4 {[%clk 0:00:24]}  Ne7 {[%clk 0:00:14]} 30. Re3 {[%clk 0:00:19]}  Rea8 {[%clk 0:00:12]} 31. Bf3 {[%clk 0:00:18]}  R8a7 {[%clk 0:00:12]} 32. Bd5 {[%clk 0:00:16]}  c6 {[%clk 0:00:12]} 33. Bf3 {[%clk 0:00:16]}  Rc5 {[%clk 0:00:12]} 34. Be2 {[%clk 0:00:16]}  Kf8 {[%clk 0:00:09]} 35. Rd1 {[%clk 0:00:15]}  Nf5 {[%clk 0:00:08]} 36. Red3 {[%clk 0:00:14]}  Rxc4 {[%clk 0:00:05]} 37. Bg4 {[%clk 0:00:13]} 1-0


[Site "https://www.chess.com"]

[Event "Titled Tuesday Blitz November 29 Late 2022"]
[White "Estrada Nieto, Julian"]
[Black "Weisz, Bryan"]
[WhiteFideId "5101018"]
[BlackFideId "30934133"]
[WhiteElo "2221"]
[BlackElo "2296"]
[Result "1-0"]
[Round "05"]
[TimeControl "180+1"]
[Date "2022.11.30"]
[WhiteClock "0:00:09"]
[BlackClock "0:00:06"]

1. e4 {[%clk 0:03:00]}  e5 {[%clk 0:02:59]} 2. Nf3 {[%clk 0:03:01]}  Nc6 {[%clk 0:02:59]} 3. Bb5 {[%clk 0:03:00]}  a6 {[%clk 0:02:53]} 4. Ba4 {[%clk 0:03:00]}  Nf6 {[%clk 0:02:54]} 5. O-O {[%clk 0:03:00]}  Nxe4 {[%clk 0:02:54]} 6. d4 {[%clk 0:03:00]}  b5 {[%clk 0:02:50]} 7. Bb3 {[%clk 0:03:00]}  d5 {[%clk 0:02:51]} 8. dxe5 {[%clk 0:03:00]}  Be6 {[%clk 0:02:50]} 9. Nbd2 {[%clk 0:02:55]}  Be7 {[%clk 0:02:46]} 10. c3 {[%clk 0:02:39]}  O-O {[%clk 0:02:44]} 11. Bc2 {[%clk 0:02:32]}  f5 {[%clk 0:02:41]} 12. exf6 {[%clk 0:02:31]}  Nxf6 {[%clk 0:02:41]} 13. Nb3 {[%clk 0:02:25]}  Bg4 {[%clk 0:02:15]} 14. Qd3 {[%clk 0:02:24]}  Ne4 {[%clk 0:02:04]} 15. Nbd4 {[%clk 0:02:11]}  Nxd4 {[%clk 0:02:02]} 16. Nxd4 {[%clk 0:02:10]}  Bd7 {[%clk 0:01:20]} 17. f3 {[%clk 0:02:04]}  Nf6 {[%clk 0:01:19]} 18. Bg5 {[%clk 0:02:04]}  c5 {[%clk 0:01:15]} 19. Bxf6 {[%clk 0:02:02]}  Bxf6 {[%clk 0:01:15]} 20. Qxh7+ {[%clk 0:02:01]}  Kf7 {[%clk 0:01:16]} 21. Qh5+ {[%clk 0:01:40]}  Ke7 {[%clk 0:01:13]} 22. Qxd5 {[%clk 0:01:31]}  Bxd4+ {[%clk 0:01:01]} 23. cxd4 {[%clk 0:01:29]}  Be6 {[%clk 0:00:53]} 24. Qxc5+ {[%clk 0:01:21]}  Kf7 {[%clk 0:00:54]} 25. Qh5+ {[%clk 0:01:18]}  Ke7 {[%clk 0:00:51]} 26. Qh4+ {[%clk 0:01:12]}  Kf7 {[%clk 0:00:51]} 27. Qf4+ {[%clk 0:01:04]}  Kg8 {[%clk 0:00:50]} 28. Qe4 {[%clk 0:01:03]}  Bf5 {[%clk 0:00:50]} 29. Bb3+ {[%clk 0:00:59]}  Kh8 {[%clk 0:00:44]} 30. Qe5 {[%clk 0:00:56]}  Qb6 {[%clk 0:00:35]} 31. Rad1 {[%clk 0:00:51]}  Rae8 {[%clk 0:00:30]} 32. Qg3 {[%clk 0:00:50]}  Rf6 {[%clk 0:00:19]} 33. Qh4+ {[%clk 0:00:37]}  Rh6 {[%clk 0:00:18]} 34. Qf4 {[%clk 0:00:37]}  Qf6 {[%clk 0:00:17]} 35. Rfe1 {[%clk 0:00:35]}  Rd8 {[%clk 0:00:14]} 36. Qe5 {[%clk 0:00:30]}  Qg6 {[%clk 0:00:13]} 37. d5 {[%clk 0:00:22]}  Rh5 {[%clk 0:00:11]} 38. Qe7 {[%clk 0:00:14]}  Rg8 {[%clk 0:00:09]} 39. d6 {[%clk 0:00:09]}  Rg5 {[%clk 0:00:07]} 40. Re2 {[%clk 0:00:07]}  Rc8 {[%clk 0:00:05]} 41. d7 {[%clk 0:00:06]}  Qb6+ {[%clk 0:00:03]} 42. Kf1 {[%clk 0:00:05]}  Rd8 {[%clk 0:00:04]} 43. Qe8+ {[%clk 0:00:04]}  Kh7 {[%clk 0:00:04]} 44. Qe7 {[%clk 0:00:04]}  Rg6 {[%clk 0:00:03]} 45. Qe3 {[%clk 0:00:04]}  Rh6 {[%clk 0:00:03]} 46. Qxb6 {[%clk 0:00:04]}  Rxb6 {[%clk 0:00:04]} 47. g4 {[%clk 0:00:05]}  Bg6 {[%clk 0:00:04]} 48. Re7 {[%clk 0:00:05]}  Rc6 {[%clk 0:00:04]} 49. Kf2 {[%clk 0:00:05]}  Rc7 {[%clk 0:00:04]} 50. Kg3 {[%clk 0:00:05]}  Bc2 {[%clk 0:00:04]} 51. Rc1 {[%clk 0:00:05]}  Bxb3 {[%clk 0:00:03]} 52. Rxc7 {[%clk 0:00:06]}  Bxa2 {[%clk 0:00:04]} 53. Rc8 {[%clk 0:00:06]}  Rxd7 {[%clk 0:00:04]} 54. Rxd7 {[%clk 0:00:06]}  Be6 {[%clk 0:00:04]} 55. Rcc7 {[%clk 0:00:07]}  Bxd7 {[%clk 0:00:05]} 56. Rxd7 {[%clk 0:00:07]}  a5 {[%clk 0:00:06]} 57. Ra7 {[%clk 0:00:08]}  a4 {[%clk 0:00:06]} 58. Ra5 {[%clk 0:00:09]} 1-0


[Site "https://www.chess.com"]